fUSD/lending_fUSD_20260205
["ID","MTS","AMOUNT","RATE_DAILY","PERIOD"]
[404565149,1770297043280,-166.66,0.00016592,2]
[404565150,1770297043291,-2232.94646844,0.0001665,2]
[404565151,1770297043301,-1592.82,0.00016661,2]
[404565152,1770297043312,-165.83,0.00016712,2]
[404565153,1770297043322,-240.66937528,0.00016759,2]
[404565154,1770297043332,-166.66,0.00016914,2]
[404565155,1770297043342,-152.0,0.00016921,14]
[404565156,1770297043352,-200.0,0.00016951,2]
[404565157,1770297043362,-200.0,0.00016951,2]
[404565158,1770297043372,-1855.2710056,0.00017032,2]
[404565159,1770297043382,-152.01739561,0.00017035,2]
[404565160,1770297043392,-339.49627916,0.00017044,2]
[404565161,1770297043402,-322.6107,0.00017099,2]
[404565162,1770297043411,-174.61919141,0.00017099,2]
[404565163,1770297043421,-2000.0,0.00017099,2]
[404565164,1770297043435,-2000.0,0.00017099,2]
[404565165,1770297043444,-2000.0,0.00017099,2]
[404565166,1770297043454,-2000.0,0.00017099,2]
[404565167,1770297043463,-578.20924308,0.00017099,2]
[404565168,1770297043473,-2000.0,0.00017099,2]
[404565169,1770297043716,-2000.0,0.00017099,2]
[404565170,1770297043727,-2000.0,0.00017099,2]
[404565171,1770297043737,-250.0,0.00017099,2]
[404565172,1770297043747,-2000.0,0.00017099,2]
[404565173,1770297043756,-250.0,0.00017099,2]
[404565174,1770297043766,-2000.0,0.00017099,2]
[404565175,1770297043776,-250.0,0.00017099,2]
[404565176,1770297043786,-2000.0,0.00017099,2]
[404565177,1770297043796,-199.92628631,0.00017099,2]
[404565178,1770297043807,-2000.0,0.00017099,2]
[404565179,1770297043819,-209.40437684,0.00017099,2]
[404565180,1770297043828,-5000.0,0.00017099,2]
[404565181,1770297043839,-277.35679052,0.00017099,2]
[404565182,1770297043848,-200.0,0.00017099,2]
[404565183,1770297043858,-1428.38747117,0.00017099,2]
[404565184,1770297043868,-500.0,0.00017099,2]
[404565185,1770297043878,-512.54322178,0.00017099,2]
[404565186,1770297043890,-250.0,0.00017099,2]
[404565187,1770297043899,-250.0,0.00017099,2]
[404565188,1770297043909,-250.0,0.00017099,2]
[404565189,1770297043918,-250.0,0.00017099,2]
[404565190,1770297043930,-250.0,0.00017099,2]
[404565191,1770297043940,-250.0,0.00017099,2]
[404565192,1770297043950,-250.0,0.00017099,2]
[404565193,1770297043960,-250.0,0.00017099,2]
[404565194,1770297043971,-250.0,0.00017099,2]
[404565195,1770297043981,-250.0,0.00017099,2]
[404565196,1770297043991,-250.0,0.00017099,2]
[404565197,1770297044000,-250.0,0.00017099,2]
[404565198,1770297044010,-250.0,0.00017099,2]
[404565199,1770297044020,-250.0,0.00017099,2]
[404565200,1770297044030,-250.0,0.00017099,2]
[404565201,1770297044039,-250.0,0.00017099,2]
[404565202,1770297044049,-250.0,0.00017099,2]
[404565203,1770297044059,-250.0,0.00017099,2]
[404565204,1770297044069,-250.0,0.00017099,2]
[404565205,1770297044079,-250.0,0.00017099,2]
[404565206,1770297044089,-250.0,0.00017099,2]
[404565207,1770297044099,-250.0,0.00017099,2]
[404565208,1770297044109,-209.40437684,0.00017099,2]
[404565209,1770297044119,-297.13,0.00017112,2]
[404565210,1770297044129,-153.24960566,0.00017141,2]
[404565211,1770297044139,-217.15233878,0.00017154,2]
[404565212,1770297044148,-225.18697532,0.00017209,2]
[404565213,1770297044159,-1000.0,0.0001726,2]
[404565214,1770297044168,-233.51889341,0.00017264,2]
[404565215,1770297044179,-151.0,0.0001731,2]
[404565216,1770297044189,-267.0,0.0001731,2]
[404565217,1770297044198,-200.0,0.0001731,2]
[404565218,1770297044208,-229.28,0.0001731,2]
[404565219,1770297044218,-277.537,0.0001731,2]
[404565220,1770297044227,-196.23,0.0001731,2]
[404565221,1770297044236,-205.99,0.0001731,2]
[404565222,1770297044246,-158.945,0.0001731,2]
[404565223,1770297044255,-250.0,0.0001731,2]
[404565224,1770297044265,-191.693,0.0001731,2]
[404565225,1770297044275,-164.442,0.0001731,2]
[404565226,1770297044284,-212.815,0.0001731,2]
[404565227,1770297044294,-250.0,0.0001731,2]
[404565228,1770297044303,-232.419,0.0001731,2]
[404565229,1770297044312,-171.0,0.0001731,2]
[404565230,1770297044321,-616.0,0.0001731,2]
[404565231,1770297044331,-1335.0,0.0001731,2]
[404565232,1770297044341,-1411.0,0.0001731,2]
[404565233,1770297044350,-3482.0,0.0001731,2]
[404565234,1770297044360,-1271.0,0.0001731,2]
[404565235,1770297044369,-917.0,0.0001731,2]
[404565236,1770297044378,-1205.0,0.0001731,2]
[404565237,1770297044388,-3254.0,0.0001731,2]
[404565238,1770297044397,-1317.0,0.0001731,2]
[404565239,1770297044407,-2466.995,0.0001731,2]
[404565240,1770297044416,-568.0,0.0001731,2]
[404565241,1770297044425,-242.15909246,0.00017319,2]
[404565242,1770297044436,-240.66937528,0.00017329,2]
[404565243,1770297044446,-152.91785682,0.0001735,2]
[404565244,1770297044456,-152.0,0.00017353,15]
[404565245,1770297044466,-251.11897888,0.00017374,2]
[404565246,1770297044477,-260.4103811,0.00017429,2]
[404565247,1770297044487,-1000.0,0.00017442,2]
[404565248,1770297044498,-1592.82,0.00017454,2]
[404565249,1770297044508,-270.0455652,0.00017484,2]
[404565250,1770297044517,-500.0,0.00017497,2]
[404565251,1770297044527,-200.0,0.00017499,2]
[404565252,1770297044537,-200.0,0.00017499,2]
[404565253,1770297044546,-1100.0,0.000175,6]
[404565254,1770297044557,-180.54,0.00017534,2]
[404565255,1770297044566,-1000.0,0.00017534,2]
[404565256,1770297044576,-280.03725112,0.00017539,2]
[404565257,1770297044586,-290.39862941,0.00017594,2]
[404565258,1770297044596,-1100.0,0.000176,6]
[404565259,1770297044606,-460.0,0.00017646,2]
[404565260,1770297044616,-181.08010149,0.00017647,2]
[404565261,1770297044626,-5000.0,0.00017647,2]
[404565262,1770297044636,-287.61899177,0.00017647,2]
[404565263,1770297044646,-200.0,0.00017647,2]
[404565264,1770297044656,-1481.23780761,0.00017647,2]
[404565265,1770297044666,-217.15233878,0.00017647,2]
[404565266,1770297044675,-301.1433787,0.00017649,2]
[404565267,1770297044688,-500.0,0.00017698,2]
[404565268,1770297044698,-150.0,0.00017698,2]
[404565269,1770297044708,-500.0,0.00017699,2]
[404565270,1770297044718,-1100.0,0.000177,6]
[404565271,1770297044727,-297.13,0.00017709,2]
[404565272,1770297044737,-460.0,0.00017744,2]
[404565273,1770297044746,-500.0,0.00017753,2]
[404565274,1770297044756,-152.0,0.00017784,16]
[404565275,1770297044766,-1000.0,0.000178,2]
[404565276,1770297044776,-1100.0,0.000178,6]
[404565277,1770297044786,-500.0,0.00017808,2]
[404565278,1770297044796,-500.0,0.00017808,2]
[404565279,1770297044808,-1000.0,0.00017808,2]
[404565280,1770297044818,-152.01739561,0.00017809,2]
[404565281,1770297044828,-393.12626,0.0001782,2]
[404565282,1770297044838,-393.12626,0.0001782,2]
[404565283,1770297044848,-500.0,0.00017856,2]
[404565284,1770297044857,-200.0,0.00017856,2]
[404565285,1770297044867,-500.0,0.00017862,2]
[404565286,1770297044877,-500.0,0.00017863,2]
[404565287,1770297044887,-5527.05760058,0.00017877,2]
[404565288,1770297044897,-7478.3016,0.00017877,2]
[404565289,1770297044907,-10000.0,0.000179,2]
[404565290,1770297044917,-339.49627916,0.000179,2]
[404565291,1770297044926,-240.66937528,0.000179,2]
[404565292,1770297044937,-1148.0,0.000179,6]
[404565293,1770297044947,-153.24960566,0.000179,2]
[404565294,1770297044956,-1855.2710056,0.000179,2]
[404565295,1770297044966,-411.07033882,0.000179,2]
[404565296,1770297044975,-12205.0,0.000179,2]
[404565297,1770297044984,-500.0,0.00017917,2]
[404565298,1770297044994,-500.0,0.00017918,2]
[404565299,1770297045003,-152.93,0.00017965,2]
[404565300,1770297045013,-500.0,0.00017972,2]
[404565301,1770297045023,-500.0,0.00017972,2]
[404565302,1770297045033,-500.0,0.00017973,2]
[404565303,1770297045043,-272.6165883,0.00017973,2]
[404565304,1770297045053,-500.0,0.00017973,2]
[404565305,1770297045063,-500.0,0.00017973,2]
[404565306,1770297045072,-500.0,0.00017973,2]
[404565307,1770297045082,-190.9702649,0.00017973,2]
[404565308,1770297045092,-500.0,0.00017973,2]
[404565309,1770297045101,-500.0,0.00017973,2]
[404565310,1770297045111,-500.0,0.00017973,2]
[404565311,1770297045120,-500.0,0.00017973,2]
[404565312,1770297045130,-500.0,0.00017973,2]
[404565313,1770297045139,-500.0,0.00017973,2]
[404565314,1770297045148,-500.0,0.00017973,2]
[404565315,1770297045157,-500.0,0.00017973,2]
[404565316,1770297045167,-500.0,0.00017973,2]
[404565317,1770297045176,-500.0,0.00017973,2]
[404565318,1770297045187,-500.0,0.00017973,2]
[404565319,1770297045196,-500.0,0.00017973,2]
[404565320,1770297045206,-500.0,0.00017973,2]
[404565321,1770297045215,-500.0,0.00017973,2]
[404565322,1770297045225,-243.77100043,0.00017973,2]
[404565323,1770297045234,-500.0,0.00017973,2]
[404565324,1770297045243,-199.25982645,0.00017973,2]
[404565325,1770297045253,-500.0,0.00017973,2]
[404565326,1770297045263,-500.0,0.00017973,2]
[404565327,1770297045273,-500.0,0.00017973,2]
[404565328,1770297045283,-500.0,0.00017973,2]
[404565329,1770297045292,-500.0,0.00017973,2]
[404565330,1770297045303,-500.0,0.00017973,2]
[404565331,1770297045313,-500.0,0.00017973,2]
[404565332,1770297045323,-500.0,0.00017973,2]
[404565333,1770297045332,-500.0,0.00017973,2]
[404565334,1770297045342,-500.0,0.00017973,2]
[404565335,1770297045352,-500.0,0.00017973,2]
[404565337,1770297045361,-500.0,0.00017973,2]
[404565338,1770297045371,-500.0,0.00017973,2]
[404565340,1770297045381,-500.0,0.00017973,2]
[404565341,1770297045391,-1000.0,0.00017978,2]
[404565342,1770297045400,-256.366,0.00017978,2]
[404565343,1770297045410,-500.0,0.00017982,2]
[404565344,1770297045420,-500.0,0.00017988,2]
[404565345,1770297045429,-154.5345725,0.0001799,2]
[404565346,1770297045439,-2842.0246557,0.00017992,2]
[404565347,1770297045449,-601.1354636,0.00017992,2]
[404565348,1770297045459,-38437.9915685,0.00017992,2]
[404565349,1770297045469,-68078.7755204,0.00017992,2]
[404565350,1770297045479,-28828.4936763,0.00017995,2]
[404565351,1770297045489,-21992.7910744,0.00017998,2]
[404565352,1770297045499,-33151.3989663,0.00017998,2]
[404565353,1770297045508,-1010.8044,0.00017999,2]
[404565354,1770297045518,-300.0,0.00017999,2]
[404565355,1770297045527,-500.0,0.00017999,2]
[404565356,1770297045537,-500.0,0.00017999,2]
[404565357,1770297045547,-500.0,0.00017999,2]
[404565358,1770297045556,-500.0,0.00017999,2]
[404565359,1770297045566,-500.0,0.00017999,2]
[404565360,1770297045576,-500.0,0.00017999,2]
[404565361,1770297045586,-500.0,0.00017999,2]
[404565362,1770297045595,-500.0,0.00017999,2]
[404565363,1770297045605,-500.0,0.00017999,2]
[404565364,1770297045614,-448.31,0.00017999,2]
[404565365,1770297045624,-300.0,0.00017999,2]
[404565366,1770297045634,-666.0,0.00017999,2]
[404565367,1770297045644,-300.0,0.00017999,2]
[404565368,1770297045653,-1227.41463026,0.00017999,5]
[404565369,1770297045663,-300.0,0.00017999,2]
[404565370,1770297045673,-300.0,0.00017999,2]
[404565371,1770297045684,-300.0,0.00017999,2]
[404565372,1770297045694,-666.0,0.00017999,2]
[404565373,1770297045705,-778.44145262,0.00017999,2]
[404565374,1770297045714,-284.80146065,0.00018,2]
[404565375,1770297045725,-1408968.33508833,0.00018,2]
[404565376,1770297045735,-1558248.50178369,0.00018,2]
[404565377,1770297045745,-20000.0,0.00018,2]
[404565378,1770297045755,-1000.0,0.00018,2]
[404565379,1770297045765,-1000.0,0.00018,2]
[404565380,1770297045774,-1000.0,0.00018,2]
[404565381,1770297045784,-1000.0,0.00018,2]
[404565382,1770297045794,-1000.0,0.00018,2]
[404565383,1770297045806,-1000.0,0.00018,2]
[404565384,1770297045816,-1000.0,0.00018,2]
[404565385,1770297045826,-1000.0,0.00018,2]
[404565386,1770297045836,-1000.0,0.00018,2]
[404565387,1770297045846,-1000.0,0.00018,2]
[404565388,1770297045856,-1000.0,0.00018,2]
[404565389,1770297045867,-1000.0,0.00018,2]
[404565390,1770297045879,-1000.0,0.00018,2]
[404565391,1770297045889,-1000.0,0.00018,2]
[404565392,1770297045899,-1000.0,0.00018,2]
[404565393,1770297045908,-1000.0,0.00018,2]
[404565394,1770297045918,-1000.0,0.00018,2]
[404565395,1770297045928,-1000.0,0.00018,2]
[404565396,1770297045938,-1000.0,0.00018,2]
[404565397,1770297045948,-1000.0,0.00018,2]
[404565398,1770297045957,-1000.0,0.00018,2]
[404565399,1770297045968,-1000.0,0.00018,2]
[404565400,1770297045978,-1000.0,0.00018,2]
[404565401,1770297045988,-1146.13843053,0.00018,2]
[404565402,1770297045999,-2395988.46554726,0.00018,2]
[404565403,1770297046043,-877.09302369,0.00018,2]
[404565422,1770297047323,-357.19999924,0.00014259,2]
[404565423,1770297047334,-391.61499634,0.00014259,2]
[404565424,1770297047539,-435.0,0.00013381,2]
[404565425,1770297047549,-502.70955075,0.00014259,2]
[404565426,1770297047560,-166.83545367,0.00014259,2]
[404565427,1770297047570,-401.4259446,0.00014286,2]
[404565428,1770297047581,-293.1306,0.00014286,2]
[404565429,1770297047609,-723.8034554,0.00014286,2]
[404565430,1770297047618,-1418.36,0.00014312,2]
[404565431,1770297047627,-1418.36,0.00014338,2]
[404565432,1770297047636,-1418.36,0.00014364,2]
[404565433,1770297047647,-1418.36,0.00014391,2]
[404565434,1770297047656,-1418.36,0.00014417,2]
[404565435,1770297047666,-1018.20355656,0.00014443,2]
[404565439,1770297237383,-300.0,0.00011366,2]
[404565440,1770297244484,-300.0,0.00011366,2]
[404565441,1770297253345,-300.0,0.00011366,2]
[404565442,1770297262562,-300.0,0.00011366,2]
[404565443,1770297386845,2108.0,0.00021,30]
[404565453,1770297598153,200.0,0.000106,3]
[404565454,1770297600247,400.0,0.000107,3]
[404565455,1770297602439,600.0,0.000108,3]
[404565456,1770297604444,900.0,0.000109,3]
[404565457,1770297642587,253.07,0.00021,90]
[404565460,1770297668248,559.2,0.00021,30]
[404565470,1770297838197,300.0,0.000106,3]
[404565471,1770297840335,700.0,0.000107,3]
[404565472,1770297842316,1000.0,0.000108,3]
[404565473,1770297842721,1004.24833384,0.00011297,3]
[404565474,1770297842782,1004.24833384,0.00011297,3]
[404565475,1770297842839,1004.24833384,0.00011297,3]
[404565476,1770297842888,1004.24833384,0.00011297,3]
[404565477,1770297842943,1004.24833384,0.00011297,3]
[404565478,1770297844416,1400.0,0.000109,3]
[404565489,1770297961322,300.0,8.999e-05,2]
[404565491,1770298051304,500.0,0.000106,3]
[404565492,1770298053399,1100.0,0.000107,3]
[404565493,1770298055501,1700.0,0.000108,3]
[404565494,1770298057596,2300.0,0.000109,3]
[404565496,1770298076744,300.0,8.999e-05,2]
[404565497,1770298107459,1200.0,8.999e-05,2]
[404565509,1770298173564,845.75839022,8.991e-05,2]
[404565512,1770298201387,1200.0,8.999e-05,2]
[404565513,1770298201433,300.0,8.999e-05,2]
[404565514,1770298201536,300.0,8.999e-05,2]
[404565527,1770298232260,-2255.84924183,9e-05,2]
[404565528,1770298232273,-1166.46,9e-05,2]
[404565529,1770298232285,-11577.69075817,9e-05,2]
[404565530,1770298232295,-224.0,9e-05,2]
[404565531,1770298232306,-250.0,9.45e-05,2]
[404565532,1770298232316,-1468.41113549,9.899e-05,2]
[404565533,1770298232329,-211.58886451,9.899e-05,2]
[404565534,1770298232339,-378.09268288,9.899e-05,2]
[404565535,1770298232350,-1301.90731712,9.899e-05,2]
[404565536,1770298232360,-87.0122323,9.899e-05,2]
[404565537,1770298232372,-332.9877677,9.899e-05,2]
[404565538,1770298232383,-250.0,9.9e-05,2]
[404565539,1770298232392,-250.0,9.9e-05,2]
[404565540,1770298232402,-1512.03721733,0.00010889,2]
[404565541,1770298232414,-838.96278267,0.00010889,2]
[404565542,1770298232424,-587.0,0.00010889,2]
[404565543,1770298232434,-299.03721733,0.00011188,2]
[404565544,1770298232450,-2493.76278267,0.00011188,2]
[404565545,1770298232460,-195.0,0.0001119,2]
[404565546,1770298232471,-1337.24149466,0.00011198,2]
[404565547,1770298232481,-2500.0,0.00011198,2]
[404565548,1770298232491,-150.0,0.00011199,2]
[404565549,1770298232501,-169.4141922,0.000112,2]
[404565550,1770298232511,-1949.93309547,0.000112,2]
[404565551,1770298237213,-4106.34725234,0.000112,2]
[404565552,1770298237274,-4142.69416501,0.000112,2]
[404565553,1770298237338,-13226.64645072,0.000112,2]
[404565554,1770298237349,-1856.9095229,0.000112,2]
[404565555,1770298237359,-188.17333529,0.000112,2]
[404565556,1770298237370,-14175.64206592,0.000112,2]
[404565557,1770298237380,-893.29513249,0.000112,2]
[404565558,1770298237390,-394.73975834,0.000112,2]
[404565560,1770298237399,-195.0,0.00011202,2]
[404565561,1770298237409,-267.6807,0.00011266,2]
[404565563,1770298237418,-154.53457251,0.00011288,2]
[404565564,1770298237428,-200.0,0.00011291,2]
[404565565,1770298237438,-502.94499964,0.00011291,2]
[404565566,1770298237452,-500.31724464,0.00011297,2]
[404565567,1770298237461,-500.0,0.00011297,2]
[404565568,1770298237471,-378.91931925,0.00011297,2]
[404565569,1770298237480,-500.0,0.00011297,2]
[404565570,1770298237491,-387.70740856,0.00011297,2]
[404565571,1770298237500,-500.0,0.00011297,2]
[404565572,1770298237510,-500.0,0.00011297,2]
[404565573,1770298237520,-500.0,0.00011297,2]
[404565574,1770298237529,-500.0,0.00011297,2]
[404565575,1770298237539,-500.0,0.00011297,2]
[404565576,1770298237549,-500.0,0.00011297,2]
[404565577,1770298237559,-500.0,0.00011297,2]
[404565578,1770298237568,-500.0,0.00011297,2]
[404565579,1770298237578,-500.0,0.00011297,2]
[404565580,1770298237588,-500.0,0.00011297,2]
[404565581,1770298237597,-500.0,0.00011297,2]
[404565582,1770298237607,-500.0,0.00011297,2]
[404565583,1770298237616,-500.0,0.00011297,2]
[404565584,1770298237626,-500.0,0.00011297,2]
[404565585,1770298237636,-500.0,0.00011297,2]
[404565586,1770298237646,-500.0,0.00011297,2]
[404565587,1770298237655,-500.0,0.00011297,2]
[404565588,1770298237665,-500.0,0.00011297,2]
[404565589,1770298237674,-500.0,0.00011297,2]
[404565590,1770298237684,-500.0,0.00011297,2]
[404565591,1770298237693,-500.0,0.00011297,2]
[404565592,1770298237707,-476.6356197,0.00011297,2]
[404565593,1770298238295,-23.3643803,0.00011297,2]
[404565594,1770298238307,-500.0,0.00011297,2]
[404565595,1770298238317,-64.6356197,0.00011297,2]
[404565596,1770298238356,-435.3643803,0.00011297,2]
[404565597,1770298238367,-151.98143365,0.00011297,2]
[404565598,1770298238377,-500.0,0.00011297,2]
[404565599,1770298238388,-500.0,0.00011297,2]
[404565600,1770298238398,-500.0,0.00011297,2]
[404565601,1770298238408,-500.0,0.00011297,2]
[404565602,1770298238418,-500.0,0.00011297,2]
[404565603,1770298238428,-500.0,0.00011297,2]
[404565604,1770298238440,-500.0,0.00011297,2]
[404565605,1770298238453,-500.0,0.00011297,2]
[404565606,1770298238463,-500.0,0.00011297,2]
[404565607,1770298238473,-500.0,0.00011297,2]
[404565608,1770298238482,-500.0,0.00011297,2]
[404565609,1770298238492,-500.0,0.00011297,2]
[404565610,1770298238502,-500.0,0.00011297,2]
[404565611,1770298238512,-500.0,0.00011297,2]
[404565612,1770298238522,-500.0,0.00011297,2]
[404565613,1770298238532,-500.0,0.00011297,2]
[404565615,1770298238541,-500.0,0.00011297,2]
[404565617,1770298238552,-500.0,0.00011297,2]
[404565618,1770298238561,-500.0,0.00011297,2]
[404565620,1770298238571,-500.0,0.00011297,2]
[404565622,1770298238581,-500.0,0.00011297,2]
[404565624,1770298238591,-500.0,0.00011297,2]
[404565626,1770298238601,-500.0,0.00011297,2]
[404565628,1770298238612,-500.0,0.00011297,2]
[404565630,1770298238622,-500.0,0.00011297,2]
[404565632,1770298238632,-500.0,0.00011297,2]
[404565633,1770298238642,-500.0,0.00011297,2]
[404565635,1770298238652,-500.0,0.00011297,2]
[404565637,1770298238662,-500.0,0.00011297,2]
[404565639,1770298238672,-500.0,0.00011297,2]
[404565641,1770298238687,-501.5899395,0.00011297,2]
[404565643,1770298238701,-500.0,0.00011297,2]
[404565645,1770298238712,-500.0,0.00011297,2]
[404565647,1770298238722,-500.0,0.00011297,2]
[404565649,1770298238732,-500.0,0.00011297,2]
[404565651,1770298238743,-500.0,0.00011297,2]
[404565653,1770298238753,-500.0,0.00011297,2]
[404565655,1770298238763,-500.0,0.00011297,2]
[404565657,1770298238773,-500.0,0.00011297,2]
[404565658,1770298238783,-500.0,0.00011297,2]
[404565660,1770298238794,-500.0,0.00011297,2]
[404565662,1770298238803,-500.0,0.00011297,2]
[404565664,1770298238813,-500.0,0.00011297,2]
[404565666,1770298238826,-500.0,0.00011297,2]
[404565668,1770298238837,-500.0,0.00011297,2]
[404565670,1770298238846,-303.5058069,0.00011297,2]
[404565672,1770298238855,-500.0,0.00011297,2]
[404565674,1770298238865,-500.0,0.00011297,2]
[404565676,1770298238875,-500.0,0.00011297,2]
[404565677,1770298238885,-500.0,0.00011297,2]
[404565679,1770298238897,-500.0,0.00011297,2]
[404565681,1770298238906,-500.0,0.00011297,2]
[404565683,1770298238916,-500.0,0.00011297,2]
[404565685,1770298238925,-500.0,0.00011297,2]
[404565687,1770298238936,-500.0,0.00011297,2]
[404565689,1770298238951,-500.0,0.00011297,2]
[404565691,1770298238961,-500.0,0.00011297,2]
[404565692,1770298238971,-500.0,0.00011297,2]
[404565694,1770298238982,-332.98476444,0.00011297,2]
[404565696,1770298238992,-500.0,0.00011297,2]
[404565698,1770298239002,-514.25804084,0.00011297,2]
[404565700,1770298239012,-500.0,0.00011297,2]
[404565702,1770298239022,-500.0,0.00011297,2]
[404565704,1770298239032,-500.0,0.00011297,2]
[404565706,1770298239042,-500.0,0.00011297,2]
[404565708,1770298239052,-500.0,0.00011297,2]
[404565710,1770298239065,-500.0,0.00011297,2]
[404565712,1770298239075,-500.0,0.00011297,2]
[404565713,1770298239085,-500.0,0.00011297,2]
[404565715,1770298239096,-500.0,0.00011297,2]
[404565717,1770298239106,-428676.39243756,0.00011298,2]
[404565720,1770298239120,-187974.3303,0.00011298,2]
[404565722,1770298239136,-825.89185212,0.00011298,2]
[404565724,1770298239149,-2882523.38541032,0.00011298,2]
[404565726,1770298239160,-237.65,0.000113,2]
[404565728,1770298239171,-3762.92,0.00011366,2]
[404565730,1770298239183,-9999.99,0.00011366,2]
[404565732,1770298239194,-150.99,0.00011366,2]
[404565733,1770298239214,-735.95,0.00011366,2]
[404565735,1770298239225,-150.99,0.00011366,2]
[404565737,1770298239235,-4196.07,0.00011366,2]
[404565739,1770298239246,-9999.99,0.00011366,2]
[404565741,1770298239257,-23906.99,0.00011366,2]
[404565743,1770298239268,-2902.68857008,0.00011388,2]
[404565745,1770298239278,-999.99,0.00011388,2]
[404565747,1770298239288,-299.99,0.00011388,2]
[404565766,1770298239515,-30829.74,0.00011388,2]
[404565767,1770298239531,-5115.129,0.00011397,2]
[404565768,1770298239542,-495.64,0.00011397,2]
[404565769,1770298239552,-271.59702336,0.00011398,2]
[404565770,1770298239562,-171.90669668,0.00011398,2]
[404565771,1770298239572,-200.0,0.00011481,2]
[404565772,1770298239581,-500.0,0.00011481,2]
[404565773,1770298239591,-500.0,0.00011481,2]
[404565774,1770298239601,-500.0,0.00011481,2]
[404565775,1770298239610,-500.0,0.00011481,2]
[404565776,1770298239619,-500.0,0.00011481,2]
[404565777,1770298239629,-500.0,0.00011481,2]
[404565778,1770298239638,-500.0,0.00011481,2]
[404565779,1770298239648,-500.0,0.00011481,2]
[404565780,1770298239657,-500.0,0.00011481,2]
[404565782,1770298239667,-500.0,0.00011481,2]
[404565784,1770298239676,-151.0,0.00011481,2]
[404565786,1770298239686,-500.0,0.00011481,2]
[404565787,1770298239695,-500.0,0.00011481,2]
[404565789,1770298239711,-151.0,0.00011481,2]
[404565791,1770298239721,-500.0,0.00011481,2]
[404565793,1770298239730,-151.0,0.00011481,2]
[404565795,1770298239739,-500.0,0.00011481,2]
[404565798,1770298239749,-151.0,0.00011481,2]
[404565799,1770298239758,-500.0,0.00011481,2]
[404565801,1770298239772,-151.0,0.00011481,2]
[404565803,1770298239781,-500.0,0.00011481,2]
[404565806,1770298239791,-151.0,0.00011481,2]
[404565808,1770298239800,-500.0,0.00011481,2]
[404565809,1770298239809,-151.0,0.00011481,2]
[404565812,1770298239819,-500.0,0.00011481,2]
[404565813,1770298239828,-151.0,0.00011481,2]
[404565815,1770298239839,-500.0,0.00011481,2]
[404565818,1770298239855,-151.0,0.00011481,2]
[404565820,1770298239865,-151.0,0.00011481,2]
[404565822,1770298239875,-151.0,0.00011481,2]
[404565824,1770298239884,-500.0,0.00011481,2]
[404565826,1770298239894,-500.0,0.00011481,2]
[404565828,1770298239903,-500.0,0.00011481,2]
[404565830,1770298239913,-500.0,0.00011481,2]
[404565832,1770298239922,-270.21862608,0.00011481,2]
[404565834,1770298239932,-1227.41463026,0.00011597,3]
[404565836,1770298239941,-166.66,0.00011599,2]
[404565838,1770298239958,-500.0,0.00011625,2]
[404565840,1770298239967,-150.0,0.00011625,2]
[404565842,1770298239977,-500.0,0.0001168,2]
[404565844,1770298239987,-500.0,0.00011735,2]